Workbook

Sheet Tabelle1
A4: Zeit | D4: Montag | L4: Dienstag | T4: Mittwoch | AB4: Donnerstag | AJ4: Zeit | AM4: Freitag
A5: Lehrer*in | D5: GR | F5: FR | L5: GR | N5: HOT | P5: VIE | T5: GR | V5: HOT | AB5: GR | AD5: HOT | AJ5: LehrerIn | AM5: GR | AO5: HOT | AQ5: WEI
A6: 8.15 9.00 | B6: U (1) | C6: 1 | D6: x | E6: =Gewichtung(D6, $C6) -> 1 | F6: x | G6: =Gewichtung(F6, $C6) -> 1 | I6: =Gewichtung(H6, $C6) -> 0 | K6: =Gewichtung(J6, $C6) -> 0 | L6: x | M6: =Gewichtung(L6, $C6) -> 1 | O6: =Gewichtung(N6, $C6) -> 0 | P6: x | Q6: =Gewichtung(P6, $C6) -> 1 | S6: =Gewichtung(R6, $C6) -> 0 | T6: x | U6: =Gewichtung(T6, $C6) -> 1 | W6: =Gewichtung(V6, $C6) -> 0 | Y6: =Gewichtung(X6, $C6) -> 0 | AA6: =Gewichtung(Z6, $C6) -> 0 | AC6: =Gewichtung(AB6, $C6) -> 0 | AD6: x | AE6: =Gewichtung(AD6, $C6) -> 1 | AG6: =Gewichtung(AF6, $C6) -> 0 | AI6: =Gewichtung(AH6, $C6) -> 0 | AJ6: 8.15 9.00 | AK6: U (1) | AL6: 1 | AN6: =Gewichtung(AM6, $AL6) -> 0 | AO6: x | AP6: =Gewichtung(AO6, $AL6) -> 1 | AR6: =Gewichtung(AQ6, $AL6) -> 0 | AT6: =Gewichtung(AS6, $AL6) -> 0
A7: 9.00 9.45 | B7: U (1) | C7: 1 | D7: x | E7: =Gewichtung(D7, $C7) -> 1 | F7: x | G7: =Gewichtung(F7, $C7) -> 1 | I7: =Gewichtung(H7, $C7) -> 0 | K7: =Gewichtung(J7, $C7) -> 0 | L7: x | M7: =Gewichtung(L7, $C7) -> 1 | O7: =Gewichtung(N7, $C7) -> 0 | P7: x | Q7: =Gewichtung(P7, $C7) -> 1 | S7: =Gewichtung(R7, $C7) -> 0 | T7: x | U7: =Gewichtung(T7, $C7) -> 1 | W7: =Gewichtung(V7, $C7) -> 0 | Y7: =Gewichtung(X7, $C7) -> 0 | AA7: =Gewichtung(Z7, $C7) -> 0 | AC7: =Gewichtung(AB7, $C7) -> 0 | AD7: x | AE7: =Gewichtung(AD7, $C7) -> 1 | AG7: =Gewichtung(AF7, $C7) -> 0 | AI7: =Gewichtung(AH7, $C7) -> 0 | AJ7: 9.00 9.45 | AK7: U (1) | AL7: 1 | AN7: =Gewichtung(AM7, $AL7) -> 0 | AO7: x | AP7: =Gewichtung(AO7, $AL7) -> 1 | AR7: =Gewichtung(AQ7, $AL7) -> 0 | AT7: =Gewichtung(AS7, $AL7) -> 0
A8: 9.45 10.00 | B8: Pause (0) | C8: 0 | D8: x | E8: =Gewichtung(D8, $C8) -> 0 | F8: p | G8: =Gewichtung(F8, $C8) -> 0 | I8: =Gewichtung(H8, $C8) -> 0 | K8: =Gewichtung(J8, $C8) -> 0 | L8: x | M8: =Gewichtung(L8, $C8) -> 0 | O8: =Gewichtung(N8, $C8) -> 0 | Q8: =Gewichtung(P8, $C8) -> 0 | S8: =Gewichtung(R8, $C8) -> 0 | T8: x | U8: =Gewichtung(T8, $C8) -> 0 | W8: =Gewichtung(V8, $C8) -> 0 | Y8: =Gewichtung(X8, $C8) -> 0 | AA8: =Gewichtung(Z8, $C8) -> 0 | AC8: =Gewichtung(AB8, $C8) -> 0 | AD8: x | AE8: =Gewichtung(AD8, $C8) -> 0 | AG8: =Gewichtung(AF8, $C8) -> 0 | AI8: =Gewichtung(AH8, $C8) -> 0 | AJ8: 9.45 10.00 | AK8: Pause (0) | AL8: 0 | AN8: =Gewichtung(AM8, $AL8) -> 0 | AO8: x | AP8: =Gewichtung(AO8, $AL8) -> 0 | AR8: =Gewichtung(AQ8, $AL8) -> 0 | AT8: =Gewichtung(AS8, $AL8) -> 0
A9: 10.00 10.30 | B9: GF (2/6) | C9: =2/6 -> 0.3333333333 | D9: x | E9: =Gewichtung(D9, $C9) -> 0.3333333333 | F9: 0.1666666667 | G9: =Gewichtung(F9, $C9) -> 0.1666666667 | I9: =Gewichtung(H9, $C9) -> 0 | K9: =Gewichtung(J9, $C9) -> 0 | L9: p | M9: =Gewichtung(L9, $C9) -> 0 | N9: x | O9: =Gewichtung(N9, $C9) -> 0.3333333333 | Q9: =Gewichtung(P9, $C9) -> 0 | S9: =Gewichtung(R9, $C9) -> 0 | T9: x | U9: =Gewichtung(T9, $C9) -> 0.3333333333 | V9: 0.1666666667 | W9: =Gewichtung(V9, $C9) -> 0.1666666667 | Y9: =Gewichtung(X9, $C9) -> 0 | AA9: =Gewichtung(Z9, $C9) -> 0 | AB9: x | AC9: =Gewichtung(AB9, $C9) -> 0.3333333333 | AD9: p | AE9: =Gewichtung(AD9, $C9) -> 0 | AG9: =Gewichtung(AF9, $C9) -> 0 | AI9: =Gewichtung(AH9, $C9) -> 0 | AJ9: 10.00 10.30 | AK9: GF (2/6) | AL9: =2/6 -> 0.3333333333 | AN9: =Gewichtung(AM9, $AL9) -> 0 | AO9: x | AP9: =Gewichtung(AO9, $AL9) -> 0.3333333333 | AQ9: x | AR9: =Gewichtung(AQ9, $AL9) -> 0.3333333333 | AT9: =Gewichtung(AS9, $AL9) -> 0
A10: 10.30 11.15 | B10: U (1) | C10: 1 | D10: x | E10: =Gewichtung(D10, $C10) -> 1 | F10: x | G10: =Gewichtung(F10, $C10) -> 1 | I10: =Gewichtung(H10, $C10) -> 0 | K10: =Gewichtung(J10, $C10) -> 0 | L10: x | M10: =Gewichtung(L10, $C10) -> 1 | N10: x | O10: =Gewichtung(N10, $C10) -> 1 | Q10: =Gewichtung(P10, $C10) -> 0 | S10: =Gewichtung(R10, $C10) -> 0 | T10: x | U10: =Gewichtung(T10, $C10) -> 1 | V10: x | W10: =Gewichtung(V10, $C10) -> 1 | Y10: =Gewichtung(X10, $C10) -> 0 | AA10: =Gewichtung(Z10, $C10) -> 0 | AB10: x | AC10: =Gewichtung(AB10, $C10) -> 1 | AD10: x | AE10: =Gewichtung(AD10, $C10) -> 1 | AG10: =Gewichtung(AF10, $C10) -> 0 | AI10: =Gewichtung(AH10, $C10) -> 0 | AJ10: 10.30 11.15 | AK10: U (1) | AL10: 1 | AM10: x | AN10: =Gewichtung(AM10, $AL10) -> 1 | AO10: x | AP10: =Gewichtung(AO10, $AL10) -> 1 | AQ10: x | AR10: =Gewichtung(AQ10, $AL10) -> 1 | AT10: =Gewichtung(AS10, $AL10) -> 0
A11: 11.15 12.00 | B11: U (1) | C11: 1 | D11: x | E11: =Gewichtung(D11, $C11) -> 1 | F11: x | G11: =Gewichtung(F11, $C11) -> 1 | I11: =Gewichtung(H11, $C11) -> 0 | K11: =Gewichtung(J11, $C11) -> 0 | L11: x | M11: =Gewichtung(L11, $C11) -> 1 | N11: x | O11: =Gewichtung(N11, $C11) -> 1 | Q11: =Gewichtung(P11, $C11) -> 0 | S11: =Gewichtung(R11, $C11) -> 0 | T11: x | U11: =Gewichtung(T11, $C11) -> 1 | V11: x | W11: =Gewichtung(V11, $C11) -> 1 | Y11: =Gewichtung(X11, $C11) -> 0 | AA11: =Gewichtung(Z11, $C11) -> 0 | AB11: x | AC11: =Gewichtung(AB11, $C11) -> 1 | AD11: x | AE11: =Gewichtung(AD11, $C11) -> 1 | AG11: =Gewichtung(AF11, $C11) -> 0 | AI11: =Gewichtung(AH11, $C11) -> 0 | AJ11: 11.15 12.00 | AK11: U (1) | AL11: 1 | AM11: x | AN11: =Gewichtung(AM11, $AL11) -> 1 | AO11: 0.1666666667 | AP11: =Gewichtung(AO11, $AL11) -> 0.1666666667 | AQ11: x | AR11: =Gewichtung(AQ11, $AL11) -> 1 | AT11: =Gewichtung(AS11, $AL11) -> 0
A12: 12.00 12.30 | B12: Mittag (2/6) | C12: =2/6 -> 0.3333333333 | D12: p | E12: =Gewichtung(D12, $C12) -> 0 | F12: x | G12: =Gewichtung(F12, $C12) -> 0.3333333333 | I12: =Gewichtung(H12, $C12) -> 0 | K12: =Gewichtung(J12, $C12) -> 0 | L12: x | M12: =Gewichtung(L12, $C12) -> 0.3333333333 | N12: x | O12: =Gewichtung(N12, $C12) -> 0.3333333333 | Q12: =Gewichtung(P12, $C12) -> 0 | S12: =Gewichtung(R12, $C12) -> 0 | T12: p | U12: =Gewichtung(T12, $C12) -> 0 | V12: x | W12: =Gewichtung(V12, $C12) -> 0.3333333333 | Y12: =Gewichtung(X12, $C12) -> 0 | AA12: =Gewichtung(Z12, $C12) -> 0 | AB12: x | AC12: =Gewichtung(AB12, $C12) -> 0.3333333333 | AD12: x | AE12: =Gewichtung(AD12, $C12) -> 0.3333333333 | AG12: =Gewichtung(AF12, $C12) -> 0 | AI12: =Gewichtung(AH12, $C12) -> 0 | AJ12: 12.00 12.15 | AK12: GF (1/6) | AL12: =1/6 -> 0.1666666667 | AM12: x | AN12: =Gewichtung(AM12, $AL12) -> 0.1666666667 | AP12: =Gewichtung(AO12, $AL12) -> 0 | AQ12: x | AR12: =Gewichtung(AQ12, $AL12) -> 0.1666666667 | AT12: =Gewichtung(AS12, $AL12) -> 0
A13: 12.30 13.15 | B13: GF (3/6) | C13: =3/6 -> 0.5 | D13: x | E13: =Gewichtung(D13, $C13) -> 0.5 | G13: =Gewichtung(F13, $C13) -> 0 | I13: =Gewichtung(H13, $C13) -> 0 | K13: =Gewichtung(J13, $C13) -> 0 | L13: x | M13: =Gewichtung(L13, $C13) -> 0.5 | N13: x | O13: =Gewichtung(N13, $C13) -> 0.5 | Q13: =Gewichtung(P13, $C13) -> 0 | S13: =Gewichtung(R13, $C13) -> 0 | T13: 0.1666666667 | U13: =Gewichtung(T13, $C13) -> 0.1666666667 | V13: x | W13: =Gewichtung(V13, $C13) -> 0.5 | Y13: =Gewichtung(X13, $C13) -> 0 | AA13: =Gewichtung(Z13, $C13) -> 0 | AB13: x | AC13: =Gewichtung(AB13, $C13) -> 0.5 | AD13: x | AE13: =Gewichtung(AD13, $C13) -> 0.5 | AG13: =Gewichtung(AF13, $C13) -> 0 | AI13: =Gewichtung(AH13, $C13) -> 0 | AJ13: 12.15 12.30 | AK13: Bus (0) | AL13: 0 | AM13: x | AN13: =Gewichtung(AM13, $AL13) -> 0 | AP13: =Gewichtung(AO13, $AL13) -> 0 | AQ13: x | AR13: =Gewichtung(AQ13, $AL13) -> 0 | AT13: =Gewichtung(AS13, $AL13) -> 0
A14: 13.15 14.00 | B14: U (1) | C14: 1 | D14: x | E14: =Gewichtung(D14, $C14) -> 1 | G14: =Gewichtung(F14, $C14) -> 0 | I14: =Gewichtung(H14, $C14) -> 0 | K14: =Gewichtung(J14, $C14) -> 0 | L14: x | M14: =Gewichtung(L14, $C14) -> 1 | N14: x | O14: =Gewichtung(N14, $C14) -> 1 | Q14: =Gewichtung(P14, $C14) -> 0 | S14: =Gewichtung(R14, $C14) -> 0 | T14: x | U14: =Gewichtung(T14, $C14) -> 1 | V14: x | W14: =Gewichtung(V14, $C14) -> 1 | Y14: =Gewichtung(X14, $C14) -> 0 | AA14: =Gewichtung(Z14, $C14) -> 0 | AB14: x | AC14: =Gewichtung(AB14, $C14) -> 1 | AD14: x | AE14: =Gewichtung(AD14, $C14) -> 1 | AG14: =Gewichtung(AF14, $C14) -> 0 | AI14: =Gewichtung(AH14, $C14) -> 0
A15: 14.00 14.45 | B15: U (1) | C15: 1 | D15: x | E15: =Gewichtung(D15, $C15) -> 1 | G15: =Gewichtung(F15, $C15) -> 0 | I15: =Gewichtung(H15, $C15) -> 0 | K15: =Gewichtung(J15, $C15) -> 0 | L15: x | M15: =Gewichtung(L15, $C15) -> 1 | N15: x | O15: =Gewichtung(N15, $C15) -> 1 | Q15: =Gewichtung(P15, $C15) -> 0 | S15: =Gewichtung(R15, $C15) -> 0 | T15: x | U15: =Gewichtung(T15, $C15) -> 1 | V15: x | W15: =Gewichtung(V15, $C15) -> 1 | Y15: =Gewichtung(X15, $C15) -> 0 | AA15: =Gewichtung(Z15, $C15) -> 0 | AB15: x | AC15: =Gewichtung(AB15, $C15) -> 1 | AD15: x | AE15: =Gewichtung(AD15, $C15) -> 1 | AG15: =Gewichtung(AF15, $C15) -> 0 | AI15: =Gewichtung(AH15, $C15) -> 0
A16: 14.45 15.00 | B16: Bus (0) | C16: 0 | D16: x | E16: =Gewichtung(D16, $C16) -> 0 | G16: =Gewichtung(F16, $C16) -> 0 | I16: =Gewichtung(H16, $C16) -> 0 | K16: =Gewichtung(J16, $C16) -> 0 | M16: =Gewichtung(L16, $C16) -> 0 | O16: =Gewichtung(N16, $C16) -> 0 | Q16: =Gewichtung(P16, $C16) -> 0 | S16: =Gewichtung(R16, $C16) -> 0 | U16: =Gewichtung(T16, $C16) -> 0 | V16: x | W16: =Gewichtung(V16, $C16) -> 0 | Y16: =Gewichtung(X16, $C16) -> 0 | AA16: =Gewichtung(Z16, $C16) -> 0 | AB16: x | AC16: =Gewichtung(AB16, $C16) -> 0 | AE16: =Gewichtung(AD16, $C16) -> 0 | AG16: =Gewichtung(AF16, $C16) -> 0 | AI16: =Gewichtung(AH16, $C16) -> 0
A17: U-Zeit | B17: =C17 -> 7.166666667 | C17: =SUM(C6:C16) -> 7.166666667 | D17: =SUM(E6:E16) -> 6.833333333 | F17: =SUM(G6:G16) -> 4.5 | H17: =SUM(I6:I16) -> 0 | J17: =SUM(K6:K16) -> 0 | L17: =SUM(M6:M16) -> 6.833333333 | N17: =SUM(O6:O16) -> 5.166666667 | P17: =SUM(Q6:Q16) -> 2 | R17: =SUM(S6:S16) -> 0 | T17: =SUM(U6:U16) -> 6.5 | V17: =SUM(W6:W16) -> 5 | X17: =SUM(Y6:Y16) -> 0 | Z17: =SUM(AA6:AA16) -> 0 | AB17: =SUM(AC6:AC16) -> 5.166666667 | AD17: =SUM(AE6:AE16) -> 6.833333333 | AF17: =SUM(AG6:AG16) -> 0 | AH17: =SUM(AI6:AI16) -> 0 | AK17: =AL17 -> 4.5 | AL17: =SUM(AL6:AL16) -> 4.5 | AM17: =SUM(AN6:AN13) -> 2.166666667 | AO17: =SUM(AP6:AP13) -> 3.5 | AQ17: =SUM(AR6:AR13) -> 2.5 | AS17: =SUM(AT6:AT13) -> 0
A19: Lehrer*in | B19: Wochenstunden | AJ19: Klassenstunden
A20: GR | B20: 27.5 | AJ20: =D17+F17+H17+J17+L17+N17+P17+T17+V17+X17+Z17+AB17+AD17+AF17+AH17+AM17+AO17+AQ17+A214 -> 57
A21: FR | B21: 4.5
A22: HOT | B22: 20.5
A23: VIE | B23: 2
A24: WEI | B24: 2.5
